[Event "3rd HoliCup Lake City 2019"]
[Site "Udaipur"]
[Date "2019.03.30"]
[Round "6"]
[White "Dutta, Joydeep"]
[Black "Raj D Vyas"]
[Result "1-0"]
[ECO "E01"]
[WhiteElo "2097"]
[BlackElo "1698"]
[Annotator "NA"]
[PlyCount "89"]
[EventDate "2019.??.??"]
[EventCountry "IND"]
[SourceTitle "playchess.com"]
[Source "ChessBase"]
[SourceQuality "1"]
[TimeControl "5400+30"]

1. d4 d5 2. c4 e6 3. Nf3 Nf6 4. g3 c6 5. Bg2 Bd6 6. Nbd2 Nbd7 7. O-O O-O 8. Qc2 e5 9. cxd5 cxd5 10. dxe5 Nxe5 {LiveBook: 39 Games} 11. Nxe5 Bxe5 12. Nf3 Bd6 13. Bg5 {E01: Catalan: Early deviations} (13. Rd1 h6 14. Be3 Re8 15. Rac1 Rxe3 16. fxe3 Qe7 17. Qb3 Bg4 18. Nd4 Re8 19. Bf3 Bh3 20. Rd3 Qe5 {1-0 (47) Reinderman,D (2584)-Spoelman,W (2583) Amsterdam 2015}) 13... Be6 14. Nd4 Rc8 $146 ({Predecessor:} 14... h6 15. Bxf6 Qxf6 16. e3 Rfd8 17. Rfd1 Rd7 18. Qb3 Rad8 19. Rac1 Be5 20. a4 Bg4 {½-½ (81) Hinrichs,J (2095)-Wagner,R (1798) Osnabrueck 2013}) 15. Qb3 Qb6 16. Qxb6 axb6 17. Rac1 (17. Bxf6 $16 gxf6 18. Rad1) 17... Be5 18. Be3 Nd7 (18... Bd7 $14) 19. f4 Bxd4 20. Bxd4 f5 21. Rfd1 Rfd8 22. Rc3 Rxc3 23. Bxc3 Nc5 24. Bd4 Ne4 25. Rc1 Rc8 26. Rxc8+ Bxc8 27. Bxb6 Kf7 28. Kf1 Ke6 29. Ke1 Bd7 30. Bf3 g6 31. Kd1 Kd6 32. Kc2 Bb5 33. b3 Kc6 34. Bd4 Ba6 35. g4 b5 36. gxf5 gxf5 37. a3 Bc8 38. Bh5 Bd7 39. Bf7 Kd6 40. Be5+ Kc5 41. b4+ $18 Kc6 42. Kd3 Nd6 43. Bg8 h6 44. Kd4 Nc4 45. Bxd5+ {Kxd5} 1-0

[Event "3rd HoliCup Lake City 2019"]
[Site "Udaipur"]
[Date "2019.03.30"]
[Round "6"]
[White "Sudhanshu Ranjan"]
[Black "Gulhariya B K"]
[Result "1-0"]
[ECO "E70"]
[WhiteElo "2056"]
[BlackElo "1691"]
[Annotator "NA"]
[PlyCount "107"]
[EventDate "2019.??.??"]
[EventCountry "IND"]
[SourceTitle "playchess.com"]
[Source "ChessBase"]
[SourceQuality "1"]
[TimeControl "5400+30"]

1. d4 Nf6 2. c4 g6 3. Nc3 Bg7 4. e4 c5 5. d5 d6 6. Bd3 Nbd7 7. Nf3 Ng4 8. Bd2 Nge5 9. Nxe5 Nxe5 10. Be2 f5 11. O-O O-O 12. f4 Nf7 13. Qc2 $11 b6 14. Rae1 fxe4 15. Nxe4 Bf5 16. Bd3 Qd7 17. Bc3 Bh6 18. Ng3 Bxd3 19. Qxd3 Rae8 20. f5 g5 21. Nh5 Nd8 22. g4 Rf7 23. Qd2 Ref8 24. h4 e5 25. dxe6 Nxe6 26. Rxe6 Qxe6 27. hxg5 Qxc4 28. gxh6 Qxg4+ 29. Qg2 Qxg2+ 30. Kxg2 Rxf5 31. Nf6+ R8xf6 32. Bxf6 Rxf1 33. Kxf1 Kf7 34. Bg5 b5 35. Ke2 Ke6 36. Bd8 d5 37. Kd3 Kd6 38. a3 Kd7 39. Ba5 Ke6 40. b4 c4+ 41. Kd4 Kf5 42. Bc7 Kg5 43. Be5 Kxh6 44. Kxd5 Kg5 45. a4 bxa4 46. Kxc4 Kf5 47. Bb8 a6 48. Kc3 Ke4 49. Kb2 Kd3 50. Ka3 Kc4 51. Kxa4 h5 52. Bg3 Kd5 53. Ka5 Kc4 54. Be1 1-0

[Event "3rd HoliCup Lake City 2019"]
[Site "Udaipur"]
[Date "2019.03.30"]
[Round "6"]
[White "Arun Rathi"]
[Black "Sauravh, Khherdekar"]
[Result "0-1"]
[ECO "A90"]
[WhiteElo "1939"]
[BlackElo "2272"]
[Annotator "NA"]
[PlyCount "134"]
[EventDate "2019.??.??"]
[EventCountry "IND"]
[SourceTitle "playchess.com"]
[Source "ChessBase"]
[SourceQuality "1"]
[TimeControl "5400+30"]

1. Nf3 f5 2. g3 Nf6 3. Bg2 e6 4. O-O d5 5. d4 Bd6 6. c4 c6 7. b3 Qe7 8. Bb2 O-O 9. Nbd2 b6 10. e3 Bb7 11. Rc1 Nbd7 12. Ne5 {A90: Dutch Defence: Miscellaneous and Modern Stonewall (with ...Bd6)} Rac8 {LiveBook: 4 Games} 13. Qe2 Ne4 (13... Rfd8 14. Rfd1 a5 15. Ndf3 Ne4 16. Nxd7 Rxd7 17. cxd5 exd5 18. Ne5 Bxe5 19. dxe5 {½-½ (29) Heimann,A (2573)-Relange,E (2464) Chartres 2017}) 14. Ndf3 Bxe5 $146 ({Predecessor:} 14... Rfd8 15. Nd3 c5 16. cxd5 exd5 17. dxc5 bxc5 18. Nh4 g6 19. Ba1 Nef6 20. Rfd1 Qf7 21. Nf4 Be5 {½-½ (21) Skomorokhin,R (2378)-Ivanov,O (2467) Vladimir 2008}) 15. Nxe5 Nxe5 16. dxe5 dxc4 17. f3 Ng5 18. Qxc4 c5 19. Qe2 Rfd8 20. Rfd1 Bc6 21. Rxd8+ Rxd8 22. Rd1 Nf7 23. Kf2 h6 24. Rd2 Rxd2 25. Qxd2 Qc7 26. b4 cxb4 27. Qxb4 Bd5 28. Qa4 Nxe5 29. Bxe5 Qxe5 30. Qc2 {[#]} Qa1 $1 31. a4 Qa2 32. Qxa2 Bxa2 33. Bf1 Kf7 34. Ke1 Bd5 35. f4 {[#]} Bc6 $1 36. a5 bxa5 37. Kd2 Ke7 38. Kc3 Kd6 39. Kc4 e5 40. Bd3 exf4 $19 41. exf4 Bd7 42. Be2 a4 43. Bf3 a5 44. h3 Be6+ 45. Kc3 a3 46. g4 fxg4 47. hxg4 Kc5 48. g5 hxg5 49. fxg5 Kd6 50. Be4 Ke5 51. Bd3 Kf4 52. g6 Kg5 53. Bc2 Kf6 54. Bd3 Bf5 55. Be2 a2 56. Kb2 Bb1 57. Bf3 Kxg6 58. Be2 Kg5 59. Bc4 Kf4 60. Bf7 g5 61. Bh5 Be4 62. Kxa2 Bf3 63. Bf7 g4 64. Bc4 g3 65. Bf1 Ke3 66. Ka3 Kf2 67. Bh3 Bg4 0-1

[Event "3rd HoliCup Lake City 2019"]
[Site "Udaipur"]
[Date "2019.03.30"]
[Round "6"]
[White "Suvankar Maity"]
[Black "Dhruv Dak"]
[Result "1-0"]
[ECO "B48"]
[WhiteElo "1911"]
[BlackElo "1684"]
[Annotator "NA"]
[PlyCount "149"]
[EventDate "2019.??.??"]
[EventCountry "IND"]
[SourceTitle "playchess.com"]
[Source "ChessBase"]
[SourceQuality "1"]
[TimeControl "5400+30"]

1. e4 c5 2. Ne2 e6 3. Nbc3 Nc6 4. g3 Nf6 5. Bg2 Be7 6. O-O O-O 7. d4 cxd4 8. Nxd4 {LiveBook: 40 Games} a6 9. a3 Qc7 10. Be3 Re8 $146 {B48: Sicilian: Taimanov: 5 Nc3 Qc7 6 Be3 a6 without Be2} ({Predecessor:} 10... d6 11. f4 Bd7 12. Qe2 Rfe8 13. Rad1 Bf8 14. Nb3 Rad8 15. g4 Bc8 16. g5 Nd7 17. Qf2 Na5 18. Nxa5 Qxa5 {½-½ (41) Saldano,G (1971)-Fell,S (2301) Caba 2018}) 11. Nb3 d6 12. f4 Bd7 ({Black should play} 12... b5 $11) 13. g4 g6 14. h3 h5 15. g5 Nh7 16. h4 Na5 17. Nxa5 Qxa5 18. Qe2 Rac8 19. Qf2 d5 20. Rfd1 Bc5 21. Bxc5 Qxc5 22. Qxc5 Rxc5 23. exd5 exd5 24. Rxd5 Rc7 25. Rad1 Nf8 26. Ne4 Kg7 27. Nf6 Re7 28. Rd6 Bg4 $18 29. R1d2 Re1+ 30. Kf2 Rce7 31. Bf1 Rb1 32. Nd5 Re8 33. Rb6 Ree1 34. Ne3 Rxe3 35. Kxe3 Rxf1 36. Rxb7 Rf3+ 37. Ke4 Ne6 38. Ra7 Rxf4+ 39. Ke5 Rf5+ 40. Kd6 Nc5 41. Rd4 Bf3 42. b4 Ne4+ 43. Kc7 Nc3 44. a4 Be2 45. Kd8 Nxa4 46. c4 Nb6 47. c5 Nd5 48. c6 Nf4 49. c7 Ne6+ 50. Ke7 Nxc7 51. Rxc7 Re5+ 52. Kd6 Re6+ 53. Kc5 Bb5 54. Rf4 Be8 55. Rb7 Kf8 56. Rb6 Ke7 57. Rxe6+ Kxe6 58. Rf6+ Ke5 59. Kb6 Bb5 60. Rxf7 Bd3 61. Kc5 Bf5 62. Kb6 Bd3 63. Rf3 Bb5 64. Rf6 Bd3 65. Ka5 Bf5 66. Kxa6 Kf4 67. b5 Kg4 68. b6 Be4 69. b7 Bxb7+ 70. Kxb7 Kxh4 71. Rxg6 Kg4 72. Rg8 Kf5 73. g6 Kf6 74. g7 Kg6 75. Rh8 1-0

[Event "3rd HoliCup Lake City 2019"]
[Site "Udaipur"]
[Date "2019.03.30"]
[Round "6"]
[White "Awadh Chaitanya"]
[Black "Wazeer Ahmad, Khan"]
[Result "1-0"]
[ECO "C10"]
[WhiteElo "1882"]
[BlackElo "1671"]
[Annotator "NA"]
[PlyCount "63"]
[EventDate "2019.??.??"]
[EventCountry "IND"]
[SourceTitle "playchess.com"]
[Source "ChessBase"]
[SourceQuality "1"]
[TimeControl "5400+30"]

1. e4 e6 2. d4 d5 3. Nc3 Ne7 4. Nf3 c6 (4... Nbc6 5. e5 b6 6. a3 Bb7 7. Bd3 Qd7 8. Qe2 Nf5 9. Be3 Be7 10. O-O-O O-O-O 11. Bb5 Kb8 12. Bf4 Rdg8 13. h4 Nxh4 14. Nxh4 {0-1 (75) Videnova,I (2336)-Repkova,E (2288) Biograd 2018}) 5. Bd3 Nd7 6. O-O {C10: French with 3 Nc3: Unusual Black 3rd moves and 3...dxe4} g6 $146 ({Predecessor:} 6... Ng6 7. Re1 Be7 8. exd5 cxd5 9. Qe2 Nf6 10. h3 a6 11. a4 O-O 12. Ne5 {1-0 (34) Bejta,A-Sopjani,E Pristina 2017}) 7. Re1 dxe4 (7... Bg7 $16) 8. Nxe4 Nd5 9. Bg5 Be7 10. Nd6+ Kf8 11. Bh6+ Kg8 12. Ne4 N5f6 13. Qe2 Nxe4 14. Qxe4 Nf6 15. Qe2 Ng4 16. Bd2 h5 17. h3 Nf6 18. c4 a6 19. Rad1 b5 20. Ne5 Qe8 21. b3 Bd7 $18 22. Bc3 Rh7 23. Bb1 b4 24. Bb2 a5 25. d5 cxd5 26. cxd5 Bb5 27. Qf3 Nxd5 28. Nxg6 fxg6 29. Rxe6 Qf7 30. Qxd5 Ra6 31. Rxa6 Qxd5 32. Rxg6+ 1-0

[Event "3rd HoliCup Lake City 2019"]
[Site "Udaipur"]
[Date "2019.03.30"]
[Round "6"]
[White "Rathore, Sonakshi"]
[Black "Vikramaditya Mukhija"]
[Result "0-1"]
[ECO "B08"]
[WhiteElo "1879"]
[BlackElo "1627"]
[Annotator "NA"]
[PlyCount "33"]
[EventDate "2019.??.??"]
[EventCountry "IND"]
[SourceTitle "playchess.com"]
[Source "ChessBase"]
[SourceQuality "1"]
[TimeControl "5400+30"]

{[%evp 14,35,0,32767,32767,-25,0,2,0,-4,2,0,0,7,4,21,35,7,88,100,32767,65,70,34]} 1. e4 d6 2. d4 g6 3. Nc3 Nf6 4. Nf3 Bg7 5. Bd3 c6 6. O-O a5 7. Qe2 O-O 8. e5 Ng4 9. Bf4 dxe5 10. dxe5 Nd7 11. e6 Nde5 12. exf7+ Rxf7 13. Ng5 Rf8 14. Bc4+ Kh8 15. h3 Nh6 16. Bb3 Nf5 17. Rad1 0-1

[Event "3rd HoliCup Lake City 2019"]
[Site "Udaipur"]
[Date "2019.03.30"]
[Round "6"]
[White "Ayush Jha"]
[Black "Mokashi Rohit"]
[Result "1-0"]
[ECO "D41"]
[WhiteElo "1861"]
[BlackElo "1615"]
[Annotator "NA"]
[PlyCount "63"]
[EventDate "2019.??.??"]
[EventCountry "IND"]
[SourceTitle "playchess.com"]
[Source "ChessBase"]
[SourceQuality "1"]
[TimeControl "5400+30"]

1. c4 c6 2. e4 d5 3. exd5 cxd5 4. cxd5 Nf6 5. d4 Nxd5 6. Nc3 Nc6 7. Nf3 e6 {LiveBook: 373 Games} 8. Bc4 Be7 9. O-O O-O 10. Be3 {D41: Queen's Gambit Declined: Semi-Tarrasch with 5 cxd5} (10. Re1 Bf6 11. Ne4 b6 12. Nxf6+ Nxf6 13. Bg5 Bb7 14. Rc1 Rc8 15. Rc3 Ne7 16. Bb3 Ned5 17. Rxc8 Qxc8 18. Ne5 Qc7 19. h4 h6 {½-½ (41) Tomashevsky,E (2716)-Howell,D (2644) Doha 2016}) 10... a6 11. Rc1 Bf6 $146 ({Predecessor:} 11... Ncb4 12. Ne5 f6 13. Nd3 Kh8 14. Nf4 Nxf4 15. Bxf4 b5 16. Bb3 e5 17. dxe5 Nd3 {1-0 (36) Hakiki,K (2189)-Garnelis,J (2188) Vung Tau 2008}) 12. Ne4 Nce7 13. Nxf6+ Nxf6 14. Bg5 b5 15. Bd3 Ned5 (15... Bb7 $11) 16. Ne5 $14 Bb7 17. Be4 Re8 18. Ng4 Nc3 19. Rxc3 Bxe4 20. Re3 Bd5 $2 (20... Bf5 $16) 21. Bxf6 gxf6 22. Nh6+ Kf8 23. Qh5 Ke7 24. Nf5+ Kd7 25. Qxf7+ Kc6 26. Rc3+ Kb6 27. Ne3 Bxa2 28. Rfc1 Re7 29. Qxf6 Rd7 30. Qe5 Rxd4 31. Rc6+ Ka5 32. Ra1 1-0

[Event "3rd HoliCup Lake City 2019"]
[Site "Udaipur"]
[Date "2019.03.30"]
[Round "6"]
[White "Chudasama Ankit"]
[Black "Bhagyashree Patil"]
[Result "1-0"]
[ECO "C45"]
[WhiteElo "1853"]
[BlackElo "1609"]
[Annotator "NA"]
[PlyCount "77"]
[EventDate "2019.??.??"]
[EventCountry "IND"]
[SourceTitle "playchess.com"]
[Source "ChessBase"]
[SourceQuality "1"]
[TimeControl "5400+30"]

{[%evp 8,67,19,14,32767,32767,32767,32767,21,32767,53,32767,32767,19,32767,37,35,32767,52,70,79,70,32767,32767,32767,71,60,70,70,69,72,68,32767,32767,32767,32767,32767,76,94,87,91,102,32767,32767,251,206,32767,32767,341,32767,32767,32767,32767,32767,32767,422,398,32767,32767,437,373,495]} 1. e4 e5 2. Nf3 Nc6 3. d4 exd4 4. Nxd4 Qf6 5. Nxc6 Bc5 6. Qf3 dxc6 7. Nc3 {C45: Scotch Game} Qxf3 (7... Be6 8. a3 O-O-O 9. Be3 Bxe3 10. Qxe3 Kb8 11. f4 Nh6 12. Bd3 Qe7 13. O-O-O f6 14. Rhe1 Nf7 {½-½ (58) Nepomniachtchi,I (2763)-Wang,H (2730) St Petersburg 2018}) 8. gxf3 Ne7 9. Be3 Bd6 10. f4 $146 ({Predecessor:} 10. O-O-O O-O 11. f4 Bb4 12. Ne2 Bg4 13. Rg1 Bf3 14. Bd4 f6 {1-0 (56) Chrobot,P-Zniszczol,W Jastrzebia Gora 2014}) 10... f6 11. Rg1 g6 12. Bc4 b5 13. Bb3 a6 14. a4 b4 15. Ne2 c5 16. f3 Nc6 17. h4 Na5 18. Bd5 $1 Bb7 19. O-O-O Rd8 20. h5 Bxd5 21. Rxd5 c6 22. Rxd6 Rxd6 23. Bxc5 Rd7 24. Bxb4 Nc4 25. b3 Nb6 26. hxg6 hxg6 27. Rxg6 Kf7 (27... Rh1+ {was called for.} 28. Kb2 Rb7) 28. Rxf6+ Kxf6 29. Bc3+ Kf7 30. Bxh8 Rd8 31. Bc3 Nc8 32. f5 Ne7 33. f4 $18 Rg8 34. f6 Rg2 35. Kd2 Ng8 36. e5 Nh6 37. Kd3 c5 38. Bd2 Ke6 39. f5+ 1-0

[Event "3rd HoliCup Lake City 2019"]
[Site "Udaipur"]
[Date "2019.03.30"]
[Round "6"]
[White "Falgun, D Purohit"]
[Black "Pandey Srishti"]
[Result "1/2-1/2"]
[ECO "B01"]
[WhiteElo "1727"]
[BlackElo "2020"]
[Annotator "NA"]
[PlyCount "139"]
[EventDate "2019.??.??"]
[EventCountry "IND"]
[SourceTitle "playchess.com"]
[Source "ChessBase"]
[SourceQuality "1"]
[TimeControl "5400+30"]

1. e4 d5 2. exd5 Nf6 3. d4 Bg4 4. Bb5+ Nbd7 5. f3 Bf5 6. Nc3 a6 7. Ba4 b5 {B01: Scandinavian Defence} 8. Bb3 $1 Nb6 9. Nge2 Nfxd5 {LiveBook: 11 Games} 10. Nxd5 Nxd5 11. O-O e6 12. Ng3 Bg6 13. f4 Be7 14. f5 exf5 15. Nxf5 Bf6 $146 ({Predecessor:} 15... Bxf5 16. Rxf5 {1-0 (38) Perez Candelario,M (2576)-Garcia Diaz,V (2134) La Roda 2017}) 16. Qf3 c6 $1 17. Re1+ Kf8 18. c3 h6 19. Bd2 Kg8 20. Re2 Kh7 21. Rae1 Qd7 {[#]} ({Black should try} 21... a5 $14) 22. Ng3 (22. Nxh6 $1 $16 gxh6 23. Bxd5 Bxd4+ 24. cxd4 Qxd5 25. Qf4) 22... Bh4 23. Re5 Rad8 24. R5e2 Rhf8 25. Rf1 Nf6 26. Re5 Bxg3 27. hxg3 Ng4 28. Re2 h5 29. Bg5 Rde8 30. Rfe1 Rxe2 31. Rxe2 Re8 32. Rxe8 Qxe8 33. Bd2 Qe7 34. Bd1 Qe6 35. Bb3 Qe8 36. Bd1 Nf6 37. Qe3 Qxe3+ 38. Bxe3 Be4 39. Bg5 $11 Ng4 40. a4 Kg6 41. Bd2 Nf6 42. axb5 axb5 43. b3 Kf5 44. c4 Bd3 45. Bf3 bxc4 46. bxc4 Bxc4 47. Bxc6 Bd5 48. Ba4 Ke4 49. Bc2+ (49. Bc1 $15) 49... Kxd4 50. Bg5 Ng4 51. Bd1 Be6 52. Bxg4 Bxg4 53. Kf2 Ke4 54. Bc1 Bd1 55. Bb2 g5 56. Bc1 Kf5 57. Bb2 Kg4 58. Bf6 Bb3 59. Be7 f5 60. Bf6 Bd5 61. Be7 f4 62. gxf4 Kxf4 63. Bd6+ Kg4 64. g3 Kh3 65. Bc7 Be6 66. Bd6 Bg4 67. Bc7 Bd1 68. Bd6 g4 69. Bc7 Kh2 70. Bd6 1/2-1/2

[Event "3rd HoliCup Lake City 2019"]
[Site "Udaipur"]
[Date "2019.03.30"]
[Round "6"]
[White "Sree Veeramani P"]
[Black "Heikrujam Jacky Singh"]
[Result "0-1"]
[ECO "B10"]
[WhiteElo "1712"]
[BlackElo "1886"]
[Annotator "NA"]
[PlyCount "45"]
[EventDate "2019.??.??"]
[EventCountry "IND"]
[SourceTitle "playchess.com"]
[Source "ChessBase"]
[SourceQuality "1"]
[TimeControl "5400+30"]

{[%evp 10,45,2,32767,32767,32767,32767,32767,32767,-36,40,44,32767,32767,32767,26,46,25,12,16,25,32767,32767,20,25,15,36,0,26,-175,32767,32767,32767,-597,-677,-29996,-29997,-29999]} 1. e4 c6 2. b3 d5 3. Bb2 dxe4 4. Nc3 Nf6 {B10: Caro-Kann: 2 d3 and 2 c4} 5. Nge2 Bg4 6. h3 Bh5 7. g4 Bg6 8. Ng3 e3 $146 ({Predecessor:} 8... h5 9. Bg2 hxg4 10. hxg4 Rxh1+ 11. Bxh1 Qd7 12. g5 {0-1 (32) Schoeller,W (2086)-Schneider,B (2433) Bayern 2000}) 9. fxe3 ({White should play} 9. dxe3 $14 Qa5 10. Bd3) 9... Qc7 10. Qf3 $1 Nbd7 11. O-O-O h6 12. Bg2 e6 13. Nce2 Bd6 14. Nf4 Bh7 15. Ngh5 Rg8 16. Nxf6+ Nxf6 17. Bxf6 gxf6 18. Nh5 O-O-O 19. Nxf6 $2 (19. Kb1 $1 $11 {and White stays safe.}) 19... Qa5 20. a4 Ba3+ 21. Kb1 Rxd2 ({Avoid the trap} 21... Qe5 $2 22. d4 $18) 22. Rxd2 Qc3 23. Rdd1 0-1

[Event "3rd HoliCup Lake City 2019"]
[Site "Udaipur"]
[Date "2019.03.30"]
[Round "6"]
[White "Cheniram, Pegu"]
[Black "Shubham"]
[Result "0-1"]
[ECO "E68"]
[WhiteElo "1698"]
[BlackElo "1880"]
[Annotator "NA"]
[PlyCount "71"]
[EventDate "2019.??.??"]
[EventCountry "IND"]
[SourceTitle "playchess.com"]
[Source "ChessBase"]
[SourceQuality "1"]
[TimeControl "5400+30"]

1. d4 d6 2. Nf3 Nd7 3. g3 Ngf6 4. Bg2 g6 5. c4 c6 6. Nc3 Bg7 7. O-O O-O 8. e4 Qc7 9. Re1 e5 10. d5 {E68: King's Indian: Fianchetto: 6...Nbd7 7 0-0 e5 8 e4} (10. h3 b6 11. b3 Bb7 12. Ba3 Rad8 13. Qc2 c5 14. dxc5 Nxc5 15. Rad1 Bc6 16. b4 Nb7 17. Bb2 Bd7 18. Qb3 {1-0 (40) Teterev,V (2501)-Jensson,E (2349) Bilbao 2014}) 10... cxd5 11. cxd5 Nc5 12. b4 Ncd7 $146 ({Predecessor:} 12... Na6 13. Qb3 Bd7 14. a4 Rfc8 15. Nb5 Bxb5 16. axb5 Nb8 17. Be3 Nbd7 18. Rec1 Qd8 19. Rxc8 {½-½ (19) Kindsvogel,R-Kapfer,T Germany 2001}) 13. Qb3 a5 14. Be3 axb4 15. Nb5 Qa5 16. Nxd6 b5 (16... Ra6 $16 {might work better.}) 17. Rec1 Ng4 18. Bh3 Nxe3 19. Qxe3 ({Much weaker is} 19. Rxc8 $6 Rfxc8 20. Nxc8 Rxc8 $11) 19... Nb6 20. Bf1 Ba6 21. Nd2 Na4 22. Nb3 Qd8 23. Rc6 $16 f5 24. Bxb5 Bxb5 25. Nxb5 Qd7 26. Nc7 f4 27. Qe1 Ra7 28. Ne6 Rb8 29. Nbc5 Nxc5 30. Rxc5 Bf8 31. Nxf8 Kxf8 32. Qc1 Qh3 33. Rc2 b3 34. axb3 f3 35. Qf1 Rxa1 36. b4 0-1

[Event "3rd HoliCup Lake City 2019"]
[Site "Udaipur"]
[Date "2019.03.30"]
[Round "6"]
[White "Pingale Shivraj"]
[Black "Joshi, Govind Ballabh"]
[Result "1/2-1/2"]
[ECO "B25"]
[WhiteElo "1600"]
[BlackElo "2128"]
[Annotator "NA"]
[PlyCount "45"]
[EventDate "2019.??.??"]
[EventCountry "IND"]
[SourceTitle "playchess.com"]
[Source "ChessBase"]
[SourceQuality "1"]
[TimeControl "5400+30"]

{[%evp 8,31,-10,32767,7,0,32767,32767,0,32767,36,18,32767,32,25,35,29,32767,32767,74,32767,53,60,18,41,113]} 1. e4 c5 2. f4 g6 3. Nf3 Bg7 4. Nc3 Nc6 5. d3 d6 6. g3 Rb8 7. Bg2 b5 8. O-O Bd7 9. h3 b4 10. Nd5 Nf6 11. Ne3 a5 12. g4 a4 13. e5 Ng8 14. exd6 exd6 15. Nc4 Qc7 16. f5 $16 d5 17. Ne3 Nce7 18. Qe2 Kf8 19. Ng5 Nf6 20. fxg6 hxg6 21. Nxf7 Kxf7 22. Nxd5 Bxg4 23. Qxg4 1/2-1/2

[Event "3rd HoliCup Lake City 2019"]
[Site "Udaipur"]
[Date "2019.03.30"]
[Round "6"]
[White "Arun Kataria"]
[Black "Hitesh, S. Jariya"]
[Result "1-0"]
[ECO "B73"]
[WhiteElo "1581"]
[BlackElo "1871"]
[Annotator "NA"]
[PlyCount "105"]
[EventDate "2019.??.??"]
[EventCountry "IND"]
[SourceTitle "playchess.com"]
[Source "ChessBase"]
[SourceQuality "1"]
[TimeControl "5400+30"]

1. e4 c5 2. Nf3 d6 3. d4 cxd4 4. Nxd4 Nf6 5. Nc3 g6 6. Be2 {LiveBook: 1917 Games} Bg7 7. O-O O-O 8. Be3 Nc6 9. f3 d5 10. exd5 {B73: Sicilian Dragon: Classical System without 9 Nb3} Nxd5 11. Nxd5 Qxd5 12. c3 (12. Nxc6 Qxc6 13. c3 e5 14. Qe1 (14. Qb3 Be6 15. Qb5 Qxb5 16. Bxb5 a6 {1-0 (52) Musumeci,V-Del Giudice,S (2058) Salsomaggiore Terme 2006}) 14... Be6 15. Qf2 Rfd8 16. a4 a6 17. a5 Bf8 18. Rfc1 Rac8 19. b4 Bc4 20. Bb6 Rd2 21. Re1 Rxe2 22. Rxe2 Bxe2 23. Qxe2 Qxc3 24. Re1 Bxb4 {0-1 (24) Brunello,M (2354)-Gaponenko,I (2416) Riga 2017}) 12... Nxd4 13. Bxd4 e5 14. Bf2 $146 ({Predecessor:} 14. Be3) 14... Qc6 15. Qc2 Bf5 16. Bd3 Bxd3 17. Qxd3 Rfd8 18. Qc2 b5 19. a3 a5 20. Qe2 a4 21. Rad1 Qc4 22. Qc2 Qb3 23. Qxb3 axb3 24. Bb6 Rdb8 25. Bc7 Rb7 26. Bd6 Rd8 27. Bc5 Rbd7 28. Rxd7 Rxd7 29. Be3 $1 f5 30. Kf2 Kf7 (30... f4 $5 {[%cal Rf4e3]} 31. Bc1 Bf8 $11) 31. Ke2 Ke6 $14 32. Ra1 e4 33. fxe4 fxe4 34. a4 bxa4 35. Rxa4 Rb7 36. Rxe4+ Kd5 37. Kd3 Bxc3 38. Bd4 Bxd4 39. Rxd4+ Ke5 40. Kc3 h5 41. Rb4 Rf7 42. Rb5+ Kf4 43. Kxb3 g5 44. Rc5 h4 45. Kc3 g4 46. Rc4+ Kg5 47. Rd4 Rf1 48. Rd5+ Kg6 49. Rd4 Kg5 50. Rd5+ Kg6 51. Rd4 Kg5 52. Rd5+ Kf4 53. Rh5 1-0

[Event "3rd HoliCup Lake City 2019"]
[Site "Udaipur"]
[Date "2019.03.30"]
[Round "6"]
[White "Awade Pradeep"]
[Black "Dubey Sanchay"]
[Result "0-1"]
[ECO "B30"]
[WhiteElo "1548"]
[BlackElo "1828"]
[Annotator "NA"]
[PlyCount "136"]
[EventDate "2019.??.??"]
[EventCountry "IND"]
[SourceTitle "playchess.com"]
[Source "ChessBase"]
[SourceQuality "1"]
[TimeControl "5400+30"]

1. e4 c5 2. Nf3 d6 3. d3 Nc6 4. g3 e6 5. Bg2 Nf6 6. O-O Be7 {LiveBook: 452 Games} 7. Re1 Qc7 8. Nbd2 O-O 9. Nf1 Rb8 10. Nh4 b5 11. f4 $11 Bb7 12. g4 Ne8 13. g5 Qd8 14. Nf3 d5 15. e5 d4 16. Ng3 Nc7 17. Nh4 Nd5 18. Qh5 g6 19. Qg4 Ncb4 20. Qe2 h6 21. Nf3 hxg5 22. fxg5 Ne3 23. Bxe3 dxe3 24. h4 Kg7 25. a3 Nd5 26. Ne4 Qb6 27. Nf6 Rbd8 28. Nxd5 Bxd5 29. Qxe3 c4 30. Qxb6 axb6 31. Nh2 Bc5+ 32. Kf1 cxd3 33. cxd3 Bxg2+ 34. Kxg2 Rxd3 35. Rad1 Rfd8 36. Rxd3 Rxd3 37. Nf3 b4 38. axb4 Bxb4 39. Re2 Kf8 40. Kg3 Ke7 41. Kf4 Bc5 42. Rc2 Rb3 43. Nd2 Be3+ 44. Kg4 Rb4+ 45. Kh3 Bxd2 46. Rxd2 Re4 47. Rd6 b5 48. Rb6 Rxe5 49. Rb7+ Kf8 50. Kg3 Re3+ 51. Kf4 Rb3 52. Ke5 Rxb2 53. Rb8+ Kg7 54. Kd6 b4 55. Ke7 b3 56. Rb4 e5 57. Re4 Rh2 58. Rxe5 Rxh4 59. Rb5 Re4+ 60. Kd6 Re3 61. Rb7 Rf3 62. Ke5 Rf5+ 63. Ke4 Rxg5 64. Rxb3 Rf5 65. Rb1 f6 66. Rb6 Re5+ 67. Kf4 g5+ 68. Kg4 Kg6 0-1